Workbook

Sheet Лист1
A1: Школа | C1: МАОУ Лицей №22 "Надежда Сибири" ул.Советская д.63 | F1: Утвердил: | G1: должность | H1: Зам. директора
A2: Типовое примерное меню приготавливаемых блюд | G2: фамилия | H2: Кулуева Н.И.
A3: Возрастная категория | E3: 7-11 лет | G3: дата | H3: 19 | I3: 1 | J3: 2026
H4: день | I4: месяц | J4: год
A5: Неделя | B5: День недели | C5: Прием пищи | D5: Раздел меню | E5: Блюда | F5: Вес блюда, г | G5: Белки | H5: Жиры | I5: Углеводы | J5: Калорийность | K5: № рецептуры | L5: Цена
A6: 1 | B6: 1 | C6: Завтрак | D6: гор.блюдо | E6: Плов с курицей | F6: 310 | G6: 29 | H6: 12 | I6: 51 | J6: 423 | K6: 54-12м | L6: 61.75
D8: гор.напиток | E8: Чай с сахаром | F8: 200 | G8: 0 | H8: 0 | I8: 6 | J8: 27 | K8: 54-2гн | L8: 1.43
D9: хлеб | E9: Батон нарезной | F9: 22 | G9: 2 | H9: 0 | I9: 11 | J9: 52 | K9: Пром. | L9: 2.64
D10: фрукты
E11: Сыр твердых сортов в нарезке | F11: 30 | G11: 7 | H11: 9 | I11: 0 | J11: 107 | K11: 54-1з | L11: 25.58
D13: итого | F13: =SUM(F6:F12) -> 562 | G13: =SUM(G6:G12) -> 38 | H13: 21 | I13: 68 | J13: 609 | L13: 91.40
A14: =A6 -> 1 | B14: =B6 -> 1 | C14: Обед | D14: закуска | E14: Огурец в нарезке | F14: 60 | G14: 0 | H14: 0 | I14: 2 | J14: 8 | K14: 54-2з | L14: 13.56
D15: 1 блюдо | E15: Борщ с капустой и картофелем со сметаной | F15: 200 | G15: 2 | H15: 5 | I15: 10 | J15: 90 | K15: 54-2с | L15: 12.58
D16: 2 блюдо | E16: Гуляш из свинины | F16: 125 | G16: 15 | H16: 36 | I16: 4 | J16: 400 | K16: 54-2м | L16: 45.42
D17: гарнир | E17: Макароны отварные | F17: 150 | G17: 5 | H17: 5 | I17: 33 | J17: 197 | K17: 54-1г | L17: 10.69
D18: напиток | E18: Компот из облепихи | F18: 200 | G18: 0 | H18: 1 | I18: 7 | J18: 39 | K18: 54-9хн | L18: 5.51
D19: хлеб бел. | E19: Батон нарезной | F19: 30 | G19: 2 | H19: 0 | I19: 15 | J19: 70 | K19: Пром. | L19: 3.64
D23: итого | F23: =SUM(F14:F22) -> 765 | G23: =SUM(G14:G22) -> 24 | H23: =SUM(H14:H22) -> 47 | I23: 71 | J23: 804 | L23: =SUM(L14:L22) -> 91.40
A24: =A6 -> 1 | B24: =B6 -> 1 | C24: Итого за день: | F24: =F13+F23 -> 1327 | G24: =G13+G23 -> 62 | H24: 68 | I24: 139 | J24: 1413
A25: 1 | B25: 2 | C25: Завтрак | D25: гор.блюдо | E25: Бефстроганов из отварной говядины с кашей гречневой рассыпчатой | F25: 270 | G25: 24 | H25: 22 | I25: 45 | J25: 468 | K25: 54-1м/54-4г | L25: 76.16
D27: гор.напиток | E27: Чай с лимоном и сахаром | F27: 200 | G27: 0 | H27: 0 | I27: 7 | J27: 28 | K27: 54-3гн | L27: 3.49
D28: хлеб | E28: Батон нарезной | F28: 21 | G28: 2 | H28: 0 | I28: 10 | J28: 49 | K28: Пром. | L28: 2.55
D29: фрукты
E30: Горошек зеленый | F30: 25 | G30: 1 | H30: 0 | I30: 1 | J30: 9 | K30: 54-20з | L30: 9.20
D32: итого | F32: =SUM(F25:F31) -> 516 | G32: =SUM(G25:G31) -> 27 | H32: =SUM(H25:H31) -> 22 | I32: =SUM(I25:I31) -> 63 | J32: =SUM(J25:J31) -> 554 | L32: =SUM(L25:L31) -> 91.40
A33: =A25 -> 1 | B33: =B25 -> 2 | C33: Обед | D33: закуска | E33: Помидор в нарезке | F33: 60 | G33: 1 | H33: 0 | I33: 2 | J33: 13 | K33: 54-3з | L33: 16.95
D34: 1 блюдо | E34: Рассольник Ленинградский | F34: 200 | G34: 2 | H34: 5 | I34: 13 | J34: 107 | K34: 54-3с | L34: 13.87
D35: 2 блюдо | E35: Тефтели из говядины и свинины с рисом и соусом сметанным натуральным | F35: 100 | G35: 11 | H35: 19 | I35: 8 | J35: 248 | K35: 54-16м/54-4соус | L35: 39.63
D36: гарнир | E36: Рис отварной | F36: 150 | G36: 4 | H36: 5 | I36: 36 | J36: 204 | K36: 54-6г | L36: 12.76
D37: напиток | E37: Компот из клубники | F37: 200 | G37: 0 | H37: 0 | I37: 7 | J37: 29 | K37: 54-31хн | L37: 5.94
D38: хлеб бел. | E38: Батон нарезной | F38: 19 | G38: 1 | H38: 0 | I38: 9 | J38: 45 | K38: Пром. | L38: 2.25
D42: итого | F42: =SUM(F33:F41) -> 729 | G42: =SUM(G33:G41) -> 19 | H42: =SUM(H33:H41) -> 29 | I42: =SUM(I33:I41) -> 75 | J42: =SUM(J33:J41) -> 646 | L42: =SUM(L33:L41) -> 91.40
A43: =A25 -> 1 | B43: =B25 -> 2 | C43: Итого за день: | F43: =F32+F42 -> 1245 | G43: =G32+G42 -> 46 | H43: =H32+H42 -> 51 | I43: =I32+I42 -> 138 | J43: =J32+J42 -> 1200
A44: 1 | B44: 3 | C44: Завтрак | D44: гор.блюдо | E44: Котлета рыбная (кета) и макароны отварные с сыром | F44: 225 | G44: 17 | H44: 11 | I44: 38 | J44: 323 | K44: 54-2р/54-3г | L44: 74.98
D46: гор.напиток | E46: Напиток из шиповника | F46: 200 | G46: 1 | H46: 0 | I46: 15 | J46: 65 | K46: 54-13хн | L46: 6.69
D47: хлеб | E47: Батон нарезной | F47: 43 | G47: 3 | H47: 0 | I47: 21 | J47: 101 | K47: Пром. | L47: 5.21
D48: фрукты
E49: Огурец в нарезке | F49: 20 | G49: 0 | H49: 0 | I49: 1 | J49: 3 | K49: 54-2з | L49: 4.52
D51: итого | F51: =SUM(F44:F50) -> 488 | G51: =SUM(G44:G50) -> 21 | H51: =SUM(H44:H50) -> 11 | I51: =SUM(I44:I50) -> 75 | J51: =SUM(J44:J50) -> 492 | L51: =SUM(L44:L50) -> 91.40
A52: =A44 -> 1 | B52: =B44 -> 3 | C52: Обед | D52: закуска | E52: Перец болгарский в нарезке | F52: 45 | G52: 1 | H52: 0 | I52: 2 | J52: 12 | K52: 54-4з | L52: 15.25
D53: 1 блюдо | E53: Суп гороховый | F53: 200 | G53: 4 | H53: 4 | I53: 16 | J53: 116 | K53: 54-8с | L53: 7.80
D54: 2 блюдо | E54: Голень цыплят-бройлеров запеченная | F54: 135 | G54: 28 | H54: 27 | I54: 0 | J54: 355 | K54: т.т.к | L54: 46.40
D55: гарнир | E55: Каша перловая рассыпчатая | F55: 160 | G55: 5 | H55: 6 | I55: 33 | J55: 200 | K55: 54-5г | L55: 11.87
D56: напиток | E56: Компот из кураги | F56: 200 | G56: 1 | H56: 0 | I56: 16 | J56: 67 | K56: 54-2хн | L56: 7.44
D57: хлеб бел. | E57: Батон нарезной | F57: 22 | G57: 2 | H57: 0 | I57: 11 | J57: 52 | K57: Пром. | L57: 2.64
D61: итого | F61: =SUM(F52:F60) -> 762 | G61: =SUM(G52:G60) -> 41 | H61: =SUM(H52:H60) -> 37 | I61: =SUM(I52:I60) -> 78 | J61: =SUM(J52:J60) -> 802 | L61: =SUM(L52:L60) -> 91.40
A62: =A44 -> 1 | B62: =B44 -> 3 | C62: Итого за день: | F62: =F51+F61 -> 1250 | G62: =G51+G61 -> 62 | H62: =H51+H61 -> 48 | I62: =I51+I61 -> 153 | J62: =J51+J61 -> 1294
A63: 1 | B63: 4 | C63: Завтрак | D63: гор.блюдо | E63: Омлет натуральный | F63: 150 | G63: 13 | H63: 18 | I63: 3 | J63: 226 | K63: 54-1о | L63: 38.11
D65: гор.напиток | E65: Какао с молоком сгущенным | F65: 180 | G65: 3 | H65: 3 | I65: 20 | J65: 120 | K65: 54-22гн | L65: 20.40
D66: хлеб | E66: Батон нарезной | F66: 31 | G66: 2 | H66: 0 | I66: 15 | J66: 73 | K66: Пром. | L66: 3.71
D67: фрукты | E67: Яблоко | F67: 135 | G67: 1 | H67: 1 | I67: 13 | J67: 60 | K67: Пром. | L67: 20.25
E68: Кукуруза сахарная | F68: 20 | G68: 0 | H68: 0 | I68: 2 | J68: 10 | K68: 54-21з | L68: 8.93
D70: итого | F70: =SUM(F63:F69) -> 516 | G70: =SUM(G63:G69) -> 19 | H70: =SUM(H63:H69) -> 22 | I70: =SUM(I63:I69) -> 53 | J70: =SUM(J63:J69) -> 489 | L70: =SUM(L63:L69) -> 91.40
A71: =A63 -> 1 | B71: =B63 -> 4 | C71: Обед | D71: закуска | E71: Винегрет с растительным маслом | F71: 60 | G71: 1 | H71: 5 | I71: 4 | J71: 67 | K71: 54-16з | L71: 8.09
D72: 1 блюдо | E72: Щи из свежей капусты со сметаной | F72: 200 | G72: 2 | H72: 5 | I72: 5 | J72: 72 | K72: 54-1с | L72: 11.18
D73: 2 блюдо | E73: Гуляш из говядины | F73: 85 | G73: 13 | H73: 14 | I73: 3 | J73: 189 | K73: 54-2м | L73: 51.37
D74: гарнир | E74: Макароны отварные | F74: 150 | G74: 5 | H74: 5 | I74: 33 | J74: 197 | K74: 54-1г | L74: 10.69
D75: напиток | E75: Чай с брусникой и сахаром | F75: 200 | G75: 0 | H75: 0 | I75: 7 | J75: 31 | K75: 54-9гн | L75: 7.45
D76: хлеб бел. | E76: Батон нарезной | F76: 22 | G76: 2 | H76: 0 | I76: 11 | J76: 52 | K76: Пром. | L76: 2.62
D80: итого | F80: =SUM(F71:F79) -> 717 | G80: =SUM(G71:G79) -> 23 | H80: =SUM(H71:H79) -> 29 | I80: =SUM(I71:I79) -> 63 | J80: =SUM(J71:J79) -> 608 | L80: =SUM(L71:L79) -> 91.40
A81: =A63 -> 1 | B81: =B63 -> 4 | C81: Итого за день: | F81: =F70+F80 -> 1233 | G81: =G70+G80 -> 42 | H81: =H70+H80 -> 51 | I81: =I70+I80 -> 116 | J81: =J70+J80 -> 1097
A82: 1 | B82: 5 | C82: Завтрак | D82: гор.блюдо | E82: Капуста тушеная с мясом и картофельное пюре | F82: 260 | G82: 15 | H82: 17 | I82: 27 | J82: 326 | K82: 54-10м/54-11г | L82: 79.20
D84: гор.напиток | E84: Чай с сахаром | F84: 200 | G84: 0 | H84: 0 | I84: 6 | J84: 27 | K84: 54-2гн | L84: 1.43
D85: хлеб | E85: Батон нарезной | F85: 21 | G85: 2 | H85: 0 | I85: 10 | J85: 49 | K85: Пром. | L85: 2.54
D86: фрукты
E87: Помидор в нарезке | F87: 20 | G87: 0 | H87: 0 | I87: 1 | J87: 4 | K87: 54-3з | L87: 5.65
D88: выпечка | E88: Булочка с маком | F88: 50 | G88: 4 | H88: 1 | I88: 27 | J88: 138 | K88: 772 | L88: 2.58
D89: итого | F89: =SUM(F82:F88) -> 551 | G89: =SUM(G82:G88) -> 21 | H89: =SUM(H82:H88) -> 18 | I89: =SUM(I82:I88) -> 71 | J89: =SUM(J82:J88) -> 544 | L89: =SUM(L82:L88) -> 91.40
A90: =A82 -> 1 | B90: =B82 -> 5 | C90: Обед | D90: закуска | E90: Горошек зеленый | F90: 60 | G90: 2 | H90: 0 | I90: 4 | J90: 22 | K90: 54-20з | L90: 22.08
D91: 1 блюдо | E91: Суп картофельный с макаронными изделиями | F91: 200 | G91: 2 | H91: 2 | I91: 15 | J91: 33 | K91: 54-24с | L91: 9.46
D92: 2 блюдо | E92: Курица тушеная с морковью | F92: 100 | G92: 14 | H92: 6 | I92: 4 | J92: 126 | K92: 54-25м | L92: 34.55
D93: гарнир | E93: Каша гречневая рассыпчатая | F93: 150 | G93: 8 | H93: 6 | I93: 36 | J93: 234 | K93: 54-4г | L93: 12.08
D94: напиток | E94: Компот из клюквы | F94: 200 | G94: 0 | H94: 0 | I94: 7 | J94: 29 | K94: 54-12хн | L94: 10.86
D95: хлеб бел. | E95: Батон нарезной | F95: 20 | G95: 2 | H95: 0 | I95: 10 | J95: 47 | K95: Пром. | L95: 2.37
D99: итого | F99: =SUM(F90:F98) -> 730 | G99: =SUM(G90:G98) -> 28 | H99: =SUM(H90:H98) -> 14 | I99: =SUM(I90:I98) -> 76 | J99: =SUM(J90:J98) -> 491 | L99: =SUM(L90:L98) -> 91.40
A100: =A82 -> 1 | B100: =B82 -> 5 | C100: Итого за день: | F100: =F89+F99 -> 1281 | G100: =G89+G99 -> 49 | H100: =H89+H99 -> 32 | I100: =I89+I99 -> 147 | J100: =J89+J99 -> 1035
A101: 2 | B101: 1 | C101: Завтрак | D101: гор.блюдо | E101: Гуляш из свинины и рис с овощами | F101: 290 | G101: 16 | H101: 36 | I101: 37 | J101: 533 | K101: 54-2м/54-26г | L101: 59.22
D103: гор.напиток | E103: Чай с лимоном и сахаром | F103: 200 | G103: 0 | H103: 0 | I103: 7 | J103: 28 | K103: 54-3гн | L103: 3.49
D104: хлеб | E104: Батон нарезной | F104: 26 | G104: 2 | H104: 0 | I104: 13 | J104: 61 | K104: Пром. | L104: 3.11
D105: фрукты
E106: Сыр твердых сортов в нарезке | F106: 30 | G106: 7 | H106: 9 | J106: 107 | K106: 54-1з | L106: 25.58
D108: итого | F108: =SUM(F101:F107) -> 546 | G108: =SUM(G101:G107) -> 25 | H108: 45 | I108: 57 | J108: 729 | L108: =SUM(L101:L107) -> 91.40
A109: =A101 -> 2 | B109: =B101 -> 1 | C109: Обед | D109: закуска | E109: Огурец в нарезке | F109: 60 | G109: 0 | H109: 0 | I109: 2 | J109: 8 | K109: 54-2з | L109: 13.56
D110: 1 блюдо | E110: Борщ с капустой и картофелем со сметаной | F110: 200 | G110: 2 | H110: 5 | I110: 10 | J110: 90 | K110: 54-2с | L110: 12.58
D111: 2 блюдо | E111: Плов с курицей | F111: 275 | G111: 25 | H111: 10 | I111: 45 | J111: 376 | K111: 54-12м | L111: 54.77
D112: гарнир
D113: напиток | E113: Чай с клюквой и сахаром | F113: 200 | G113: 0 | H113: 0 | I113: 7 | J113: 29 | K113: 54-10гн | L113: 7.57
D114: хлеб бел. | E114: Батон нарезной | F114: 24 | G114: 2 | H114: 0 | I114: 12 | J114: 56 | K114: Пром. | L114: 2.92
D118: итого | F118: =SUM(F109:F117) -> 759 | G118: =SUM(G109:G117) -> 29 | H118: 15 | I118: 76 | J118: 559 | L118: =SUM(L109:L117) -> 91.40
A119: =A101 -> 2 | B119: =B101 -> 1 | C119: Итого за день: | F119: =F108+F118 -> 1305 | G119: =G108+G118 -> 54 | H119: =H108+H118 -> 60 | I119: =I108+I118 -> 133 | J119: =J108+J118 -> 1288
A120: 2 | B120: 2 | C120: Завтрак | D120: гор.блюдо | E120: Жаркое со свининой | F120: 300 | G120: 23 | H120: 51 | I120: 28 | J120: 660 | K120: 59 | L120: 63.71
D122: гор.напиток | E122: Чай со смородиной и сахаром | F122: 200 | G122: 0 | H122: 0 | I122: 7 | J122: 31 | K122: 54-6гн | L122: 9.11
D123: хлеб | E123: Батон нарезной | F123: 27 | G123: 2 | H123: 0 | I123: 13 | J123: 63 | K123: Пром. | L123: 3.33
D124: фрукты
E125: Перец болгарский в нарезке | F125: 45 | G125: 1 | H125: 0 | I125: 2 | J125: 12 | K125: 54-4з | L125: 15.25
D127: итого | F127: =SUM(F120:F126) -> 572 | G127: =SUM(G120:G126) -> 26 | H127: 51 | I127: 50 | J127: 766 | L127: =SUM(L120:L126) -> 91.40
A128: =A120 -> 2 | B128: =B120 -> 2 | C128: Обед | D128: закуска | E128: Помидор в нарезке | F128: 60 | G128: 1 | H128: 0 | I128: 2 | J128: 13 | K128: 54-3з | L128: 16.95
D129: 1 блюдо | E129: Рассольник Ленинградский | F129: 200 | G129: 2 | H129: 5 | I129: 13 | J129: 107 | K129: 54-3с | L129: 13.87
D130: 2 блюдо | E130: Биточки (особые) с соусом сметанным | F130: 100 | G130: 8 | H130: 12 | I130: 23 | J130: 295 | K130: 65/54-1соус | L130: 41.20
D131: гарнир | E131: Каша перловая рассыпчатая | F131: 150 | G131: 4 | H131: 5 | I131: 31 | J131: 187 | K131: 54-5г | L131: 11.12
D132: напиток | E132: Компот из клубники | F132: 200 | G132: 0 | H132: 0 | I132: 7 | J132: 29 | K132: 54-31хн | L132: 5.94
D133: хлеб бел. | E133: Батон нарезной | F133: 19 | G133: 1 | H133: 0 | I133: 9 | J133: 45 | K133: Пром. | L133: 2.32
D137: итого | F137: =SUM(F128:F136) -> 729 | G137: =SUM(G128:G136) -> 16 | H137: 22 | I137: 85 | J137: 676 | L137: =SUM(L128:L136) -> 91.40
A138: =A120 -> 2 | B138: =B120 -> 2 | C138: Итого за день: | F138: =F127+F137 -> 1301 | G138: =G127+G137 -> 42 | H138: =H127+H137 -> 73 | I138: =I127+I137 -> 135 | J138: =J127+J137 -> 1442
A139: 2 | B139: 3 | C139: Завтрак | D139: гор.блюдо | E139: Бефстроганов из отварной говядины и макароны отварные с сыром | F139: 255 | G139: 20 | H139: 20 | I139: 36 | J139: 406 | K139: 54-1м/54-3г | L139: 74.96
D141: гор.напиток | E141: Напиток из шиповника | F141: 200 | G141: 1 | H141: 0 | I141: 15 | J141: 65 | K141: 54-13хн | L141: 6.69
D142: хлеб | E142: Батон нарезной | F142: 25 | G142: 2 | H142: 0 | I142: 12 | J142: 59 | K142: Пром. | L142: 2.97
D143: фрукты
E144: Огурец в нарезке | F144: 30 | G144: 0 | H144: 0 | I144: 1 | J144: 4 | K144: 54-2з | L144: 6.78
D146: итого | F146: =SUM(F139:F145) -> 510 | G146: =SUM(G139:G145) -> 23 | H146: 20 | I146: 64 | J146: 534 | L146: =SUM(L139:L145) -> 91.40
A147: =A139 -> 2 | B147: =B139 -> 3 | C147: Обед | D147: закуска | E147: Горошек зеленый | F147: 60 | G147: 2 | H147: 0 | I147: 4 | J147: 22 | K147: 54-20з | L147: 22.08
D148: 1 блюдо | E148: Суп гороховый | F148: 200 | G148: 4 | H148: 4 | I148: 16 | J148: 116 | K148: 54-25с | L148: 7.80
D149: 2 блюдо | E149: Шницель из курицы | F149: 90 | G149: 17 | H149: 4 | I149: 12 | J149: 152 | K149: 54-24м | L149: 35.86
D150: гарнир | E150: Рис отварной | F150: 150 | G150: 4 | H150: 5 | I150: 36 | J150: 204 | K150: 54-6г | L150: 12.76
D151: напиток | E151: Компот из брусники | F151: 180 | G151: 0 | H151: 0 | I151: 7 | J151: 29 | K151: 54-11хн | L151: 9.58
D152: хлеб бел. | E152: Батон нарезной | F152: 27 | G152: 2 | H152: 0 | I152: 13 | J152: 63 | K152: Пром. | L152: 3.32
D156: итого | F156: =SUM(F147:F155) -> 707 | G156: =SUM(G147:G155) -> 29 | H156: 13 | I156: 88 | J156: 586 | L156: =SUM(L147:L155) -> 91.40
A157: =A139 -> 2 | B157: =B139 -> 3 | C157: Итого за день: | F157: =F146+F156 -> 1217 | G157: =G146+G156 -> 52 | H157: =H146+H156 -> 33 | I157: =I146+I156 -> 152 | J157: =J146+J156 -> 1120
A158: 2 | B158: 4 | C158: Завтрак | D158: гор.блюдо | E158: Каша жидкая молочная рисовая | F158: 200 | G158: 5 | H158: 5 | I158: 29 | J158: 185 | K158: 54-25.1к | L158: 23.42
D160: гор.напиток | E160: Какао с молоком сгущенным | F160: 200 | G160: 3 | H160: 3 | I160: 22 | J160: 133 | K160: 54-22гн | L160: 22.66
D161: хлеб | E161: Батон нарезной | F161: 25 | G161: 2 | H161: 0 | I161: 12 | J161: 59 | K161: Пром. | L161: 3.00
D162: фрукты | E162: Яблоко | F162: 140 | G162: 1 | H162: 1 | I162: 14 | J162: 62 | K162: Пром. | L162: 21.00
E163: Сыр твердых сортов в нарезке | F163: 25 | G163: 6 | H163: 7 | I163: 0 | J163: 90 | K163: 54-1з | L163: 21.32
D165: итого | F165: =SUM(F158:F164) -> 590 | G165: =SUM(G158:G164) -> 17 | H165: 16 | I165: 77 | J165: 529 | L165: =SUM(L158:L164) -> 91.40
A166: =A158 -> 2 | B166: =B158 -> 4 | C166: Обед | D166: закуска | E166: Винегрет с растительным маслом | F166: 60 | G166: 1 | H166: 5 | I166: 4 | J166: 67 | K166: 54-16з | L166: 8.09
D167: 1 блюдо | E167: Щи из свежей капусты со сметаной | F167: 200 | G167: 2 | H167: 5 | I167: 5 | J167: 72 | K167: 54-1с | L167: 11.18
D168: 2 блюдо | E168: Тефтели рыбные (кета) с соусом белым основным | F168: 80 | G168: 9 | H168: 7 | I168: 7 | J168: 127 | K168: 54-20р/54-2соус | L168: 53.31
D169: гарнир | E169: Макароны отварные | F169: 150 | G169: 5 | H169: 5 | I169: 33 | J169: 197 | K169: 54-1г | L169: 10.69
D170: напиток | E170: Компот из облепихи | F170: 200 | G170: 0 | H170: 1 | I170: 7 | J170: 39 | K170: 54-9хн | L170: 5.51
D171: хлеб бел. | E171: Батон нарезной | F171: 22 | G171: 2 | H171: 0 | I171: 11 | J171: 52 | K171: Пром. | L171: 2.62
D175: итого | F175: =SUM(F166:F174) -> 712 | G175: =SUM(G166:G174) -> 19 | H175: 23 | I175: 67 | J175: 554 | L175: =SUM(L166:L174) -> 91.40
A176: =A158 -> 2 | B176: =B158 -> 4 | C176: Итого за день: | F176: =F165+F175 -> 1302 | G176: =G165+G175 -> 36 | H176: =H165+H175 -> 39 | I176: =I165+I175 -> 144 | J176: =J165+J175 -> 1083
A177: 2 | B177: 5 | C177: Завтрак | D177: гор.блюдо | E177: Котлета из говядины и каша перловая рассыпчатая | F177: 260 | G177: 20 | H177: 20 | I177: 50 | J177: 461 | K177: 54-4м/54-5г | L177: 73.28
D179: гор.напиток | E179: Чай с молоком и сахаром | F179: 200 | G179: 2 | H179: 1 | I179: 9 | J179: 51 | K179: 54-4гн | L179: 5.56
D180: хлеб | E180: Батон нарезной | F180: 22 | G180: 2 | H180: 0 | I180: 11 | J180: 52 | K180: Пром. | L180: 2.68
D181: фрукты
E182: Помидор в нарезке | F182: 35 | G182: 0 | H182: 0 | I182: 1 | J182: 7 | K182: 54-3з | L182: 9.88
D184: итого | F184: =SUM(F177:F183) -> 517 | G184: =SUM(G177:G183) -> 24 | H184: 21 | I184: 71 | J184: 571 | L184: =SUM(L177:L183) -> 91.40
A185: =A177 -> 2 | B185: =B177 -> 5 | C185: Обед | D185: закуска | E185: Перец болгарский в нарезке | F185: 60 | G185: 1 | H185: 0 | I185: 3 | J185: 15 | K185: 54-4з | L185: 20.34
D186: 1 блюдо | E186: Суп картофельный с макаронными изделиями | F186: 200 | G186: 2 | H186: 2 | I186: 15 | J186: 33 | K186: 54-24с | L186: 9.46
D187: 2 блюдо | E187: Курица тушеная с морковью | F187: 110 | G187: 16 | H187: 6 | I187: 5 | J187: 139 | K187: 54-25м | L187: 38.00
D188: гарнир | E188: Каша гречневая рассыпчатая | F188: 170 | G188: 9 | H188: 7 | I188: 41 | J188: 265 | K188: 54-4г | L188: 13.71
D189: напиток | E189: Компот из кураги | F189: 200 | G189: 1 | H189: 0 | I189: 16 | J189: 67 | K189: 54-2хн | L189: 7.44
D190: хлеб бел. | E190: Батон нарезной | F190: 20 | G190: 2 | H190: 0 | I190: 10 | J190: 47 | K190: Пром. | L190: 2.45
D194: итого | F194: =SUM(F185:F193) -> 760 | G194: =SUM(G185:G193) -> 31 | H194: 15 | I194: 90 | J194: 566 | L194: =SUM(L185:L193) -> 91.40
A195: =A177 -> 2 | B195: =B177 -> 5 | C195: Итого за день: | F195: =F184+F194 -> 1277 | G195: =G184+G194 -> 55 | H195: =H184+H194 -> 36 | I195: =I184+I194 -> 161 | J195: =J184+J194 -> 1137
C196: Среднее значение за период: | F196: =(F24+F43+F62+F81+F100+F119+F138+F157+F176+F195)/(IF(F24=0,0,1)+IF(F43=0,0,1)+IF(F62=0,0,1)+IF(F81=0,0,1)+IF(F100=0,0,1)+IF(F119=0,0,1)+IF(F138=0,0,1)+IF(F157=0,0,1)+IF(F176=0,0,1)+IF(F195=0,0,1)) -> 1273.8 | G196: =(G24+G43+G62+G81+G100+G119+G138+G157+G176+G195)/(IF(G24=0,0,1)+IF(G43=0,0,1)+IF(G62=0,0,1)+IF(G81=0,0,1)+IF(G100=0,0,1)+IF(G119=0,0,1)+IF(G138=0,0,1)+IF(G157=0,0,1)+IF(G176=0,0,1)+IF(G195=0,0,1)) -> 50 | H196: 49 | I196: 142 | J196: 1211
